{"text_format":"1","workbook":"xlsx","n_sheets":4,"sheets":["Programme","Cohorts","Minors","Selections"],"not_rendered":{"charts":0,"images":8,"macros":1,"external_links":0,"defined_names":10,"comments":0,"pivot_tables":0},"unopened":[],"bounds":{"document_bytes":16777216,"sheet_cells":100000,"rows_first":2000,"rows_last":500,"rows_between":2000,"halvings":0,"cell_chars":16384,"cell_head_chars":4096},"cells_cut":0,"cells_raw":0,"read":"whole","date_system":"1900"}

{"sheet":"Programme","index":0,"n_rows":6,"n_cols":13,"rows_kept":6,"cut":false,"hidden":false,"merged":[[2,12,3,15]]}
[null,"Request for approval of Bachelor's Programme Molecular Life Sciences"]
[null,null,"Please select your specialization and starting year of the Bachelor's programme"]
[null,null,"Then click on the 'Generate programme approval request form' button",null,null,null,null,null,null,null,null,null,"Administrator tools"]
[]
[null,null,"Cohorts"]
[null,null,"Please Select…"]

{"sheet":"Cohorts","index":1,"n_rows":262,"n_cols":8,"rows_kept":262,"cut":false,"hidden":true,"merged":[[230,2,230,6],[231,2,231,6],[232,2,232,6],[101,2,101,6],[102,2,102,6],[103,2,103,6],[5,2,5,8],[6,2,6,8],[7,2,7,8],[8,2,8,8],[100,2,100,6],[9,2,9,8],[24,1,24,4],[97,1,97,2],[97,4,97,5],[99,2,99,6],[98,2,98,6],[256,1,260,6],[123,1,123,2],[126,1,126,3],[127,1,131,6],[252,1,252,2],[255,1,255,3],[157,1,157,4],[226,1,226,2],[226,4,226,5],[137,2,137,8],[138,2,138,8],[139,2,139,8],[140,2,140,8],[141,2,141,8],[227,2,227,6],[229,2,229,6]]}
["Laat deze kolom leeg, behalve de jaartallen en de scheidingswoorden"]
["2013, 2014, 2015"]
[null,"Request form for approval of your Bachelor's Programme: Molecular Life Sciences Cohort 2013, 2014, 2015"]
[null,"After filling in this form, mail it to fnwi.examcies@science.ru.nl"]
[]
[null,"Name:"]
[null,"Student number: "]
[null,"E-mail:"]
[null,"Phone number:"]
[null,"Cohort:",{"$f":"Programme!$C$6","v":"Please Select…"}]
[]
[null,null,"Compulsory Courses (39 EC)",null,null,null,"Adjustments to these Courses"]
[null,"Course Code","Course Name","EC","Taken?","Course Code","Course Name","EC"]
[null,"NWI-MOL028","Statistics",3,"Yes"]
[null,"NWI-MOL076","Programmeren: Matlab",3,"Yes"]
[null,"NWI-MOL086","Academische Vorming",3,"Yes"]
[null,"NWI-MOL032","Crystal Structure",3,"Yes"]
[null,"NWI-MOL036","Algemene Fysiologie",3,"Yes"]
[null,"NWI-MOL038","Genetica",3,"Yes"]
[null,"NWI-MOL027","DNA-technology",3,"Yes"]
[null,"NWI-MOL031","Biochemie in de Levende Cel",3,"Yes"]
[null,"NWI-MOL075","Bioinformatica A",3,"Yes"]
[null,"NWI-MOL037","MLW & Samenleving",3,"Yes"]
[null,"NWI-FCEM02B","CEM: Schrijfvaardigheid",3,"Yes"]
[null,"Choose one course per colour coded category"]
[null,"NWI-MOL043","Bio-anorganische Chemie",3]
[null,"NWI-MOL105","Inorganic Biochemistry",3]
[null,"NWI-FFIL100","Inleiding Filosofie en Ethiek",3]
[null,"NWI-FFIL101","Inleiding Filosofie & Ethiek (Wis&Nat)",3]
[null,null,"Total:",{"$f":"SUMIFS(D14:D29,H14:H29,\"\",E14:E29,\"Yes\")+SUM(H14:H29)","v":33}]
[]
[null,null,"Minor Space (Not mandatory)"]
[null,"In case you are egligible for two minors, please select the minor here which you want to have mentioned on your degree."]
[null,"Please provide the name of the minor as well as the cohort of the prospectus it is found in"]
[null,"Minor:","Please select your minor here"]
[null,"Prospectus Year:","Select your prospectus",null,null,null,"Adjustments to the minor"]
["#hieronderbegintdeminormeteenhashtag","Course Code","Course Name","EC","Taken? (Y/N)","Course Code","Course Name","EC"]
[]
[]
["#hierbovenbegintdeminormeteenhashtag",null,"Total:",{"$f":"SUMIFS(D37:D39,H37:H39,\"\",E37:E39,\"Yes\")+SUM(H37:H39)","v":0}]
[]
[]
[]
[null,"The programme of Molecular Life Sciences is taught in English for cohort 2016 and later. Please make sure that you select the course in the correct language from the list"]
[null,"The regulations about the number of EC for the following exam parts are as follows:"]
[]
[null,"- In case of a Minor: The minor, priority courses and elective courses add up to 63 EC. Also 75% of all EC not in the minor should consist of priority courses"]
[null,"- No Minor:  42 EC of priority courses, 15 EC of elective courses and 6 EC of natural science courses"]
[]
[]
[null,"#pagebreakinhetwit"]
[null,null,"Priority Courses",null,null,null,"Adjustments to these Courses"]
[]
[null,"Course Code","Course Name","EC","Taken? (Y/N)","Course Code","Course Name","EC"]
[null,{"$f":"VLOOKUP(C55,priority_list,2,0)","v":""},"Choose your priority courses",{"$f":"VLOOKUP(C55,priority_list,3,0)","v":""}]
[null,"","",""]
[null,"","",""]
[null,"","",""]
[null,"","",""]
[null,"","",""]
[null,"","",""]
[null,"","",""]
[null,"","",""]
[null,"","",""]
[null,"","",""]
[null,"","",""]
[null,"","",""]
[null,"","",""]
[null,null,"Total:",{"$f":"SUMIF(H55:H68,\"\",D55:D68)+SUM(H55:H68)","v":0}]
[null,"*Note: While NWI‐BB086 Genomics for Health and Environment is 12 EC for you programme, you are only allowed to use 6 EC of these to your priority list"]
[null,"Should you have done this course, please change the appropiate column for that course to yes below."]
[]
[null,null,"Approved Elective Courses ",null,null,null,"Adjustments to these Courses"]
[null,"Course Code","Course Name","EC","Taken? (Y/N)","Course Code","Course Name","EC"]
[null,{"$f":"VLOOKUP(C75,elective_list,2,0)","v":""},"Choose from…",{"$f":"VLOOKUP(C75,elective_list,3,0)","v":""}]
[null,"","",""]
[null,"","",""]
[null,"","",""]
[null,"","",""]
[null,"","",""]
[null,"N/A","Genomics for Health and Env.* (12EC)",6,"No"]
[null,null,"Total:",{"$f":"SUMIF(G75:G80,\"\",D75:D80)+SUM(G75:G80)+SUMIF(E81:E81,\"Yes\",D81:D81)","v":0}]
[]
[null,null,"Natural Science Courses (6 EC)"]
[null,"Course Code","Course Name","EC"]
[]
[]
[null,null,"Total:",{"$f":"SUMIF(G86:G87,\"\",D86:D87)+SUM(G86:G87)","v":0}]
[null,"* The 6 EC of Natural Sciences course is only applicable if you have chosen not to do a minor"]
[]
[null,null,"Free Electives (6 EC)"]
[null,"Course Code","Course Name","EC"]
[]
[]
[null,null,"Total:",{"$f":"SUMIF(G93:G94,\"\",D93:D94)+SUM(G93:G94)","v":0}]
[]
[null,null,"Bachelor's Internship (12 EC)*"]
[null,"If extended, please edit the amount of EC here:",null,12]
[null,"Title:"]
[]
[null,"First supervisor:"]
[null,"Department:","List of allowed departments"]
[null,"Second supervisor:","Leave this blank if not yet known"]
[null,"Department:","Leave this blank if not yet known"]
[null,null,"Total:",{"$f":"SUM(D98)","v":12}]
[]
[]
[null,null,"Total EC:",{"$f":"SUM(D105,D82,D69,D40,D30,D88,D95)","v":45}]
[]
[null,"Extracurricular courses (above 120 EC)"]
[null,"Cursuscode","Cursusnaam","EC"]
[]
[]
[]
[]
[]
[]
[]
[]
[]
[]
[null,null,"Totaal:",{"$f":"SUM(D112:D121)","v":0}]
[]
[null,"Total EC including extracurricular courses",null,{"$f":"SUM(D122,D108)","v":45}]
[]
[]
[null,"Remarks about your programme:"]
[]
[]
[]
[]
[]
["#scheidingswoordmeteenhashtag"]
["2016, 2017, 2018"]
[null,"Request form for approval of your Bachelor's Programme: Molecular Life Sciences Cohorts 2016, 2017, 2018"]
[null,"After filling in this form, mail it to fnwi.examcies@science.ru.nl"]
[]
[null,"Name:"]
[null,"Student number: "]
[null,"E-mail:"]
[null,"Phone number:"]
[null,"Cohort:"]
[]
[null,null,"Compulsory Courses (39 EC)",null,null,null,"Adjustments to these Courses"]
[null,"Course Code","Course Name","EC","Taken?","Course Code","Course Name","EC"]
[null,"NWI‐MOL027","DNA technology",3,"Yes"]
[null,"NWI‐MOL075","Bioinformatics A",3,"Yes"]
[null,"NWI‐MOL031","Biochemistry in the Living Cell",3,"Yes"]
[null,"NWI‐MOL105","Inorganic Biochemistry",3,"Yes"]
[null,"NWI‐MOL028","Statistics",3,"Yes"]
[null,"NWI‐MOL032","Crystal Structure",3,"Yes"]
[null,"NWI‐MOL036","General Physiology",3,"Yes"]
[null,"NWI‐MOL076","Programming: Matlab",3,"Yes"]
[null,"NWI‐MOL038","Genetics",3,"Yes"]
[null,"NWI‐MOL037","Molecular Life Sciences and society",3,"Yes"]
[null,"NWI‐MOL086","Academic skills",3,"Yes"]
[null,"NWI‐FCEM02B","Writing about Science",3,"Yes"]
[null,"Choose one course per colour coded category"]
[null,"NWI-FFIL100","Intro. Philosophy and Ethics of Science",3]
[null,"NWI-FFIL101","Intro. Philosophy and Ethics of Science",3]
[null,null,"Total:",{"$f":"SUMIFS(D146:D160,H146:H160,\"\",E146:E160,\"Yes\")+SUM(H146:H160)","v":36}]
[]
[null,null,"Minor Space (Not mandatory)"]
[null,"In case you are egligible for two minors, please select the minor here which you want to have mentioned on your degree."]
[null,"Please provide the name of the minor as well as the cohort of the prospectus it is found in"]
[null,"Minor:","Please select your minor here"]
[null,"Prospectus Year:","Select your prospectus",null,null,null,"Adjustments to the minor"]
["#hieronderbegintdeminormeteenhashtag","Course Code","Course Name","EC","Taken? (Y/N)","Course Code","Course Name","EC"]
[]
[]
["#hierbovenbegintdeminormeteenhashtag",null,"Total:",{"$f":"SUMIFS(D168:D170,H168:H170,\"\",E168:E170,\"Yes\")+SUM(H168:H170)","v":0}]
[]
[]
[]
[null,"The programme of Molecular Life Sciences is taught in English for cohort 2016 and later. Please make sure that you select the course in the correct language from the list"]
[null,"The regulations about the number of EC for the following exam parts are as follows:"]
[]
[null,"- In case of a Minor: The minor, priority courses and approved elective courses add up to 63 EC. Also 75% of all EC not in the minor should consist of priority courses"]
[null,"- No Minor:  At least 42 EC of priority courses, At most 15 EC of approved elective courses and 6 EC of natural science courses. Total: 63 EC"]
[null,"#pagebreakinhetwit"]
[null,null,"Priority Courses",null,null,null,"Adjustments to these Courses"]
[]
[null,"Course Code","Course Name","EC","Taken? (Y/N)","Course Code","Course Name","EC"]
[null,{"$f":"VLOOKUP(C184,priority_list,2,0)","v":""},"",{"$f":"VLOOKUP(C184,priority_list,3,0)","v":""}]
[null,"","",""]
[null,"","",""]
[null,"","",""]
[null,"","",""]
[null,"","",""]
[null,"","",""]
[null,"","",""]
[null,"","",""]
[null,"","",""]
[null,"","",""]
[null,"","",""]
[null,"","",""]
[null,"","",""]
[null,null,"Total:",{"$f":"SUMIF(H184:H197,\"\",D184:D197)+SUM(H184:H197)","v":0}]
[null,"*Note: while NWI‐BB086 Genomics for Health and Environment is 12 EC for you programme, you are only allowed to use 6 of these as EC for the priority courses"]
[null,"Should you have done this course, please change the appropiate column for that course to yes below."]
[]
[null,null,"Approved Elective Courses ",null,null,null,"Adjustments to these Courses"]
[null,"Course Code","Course Name","EC","Taken? (Y/N)","Course Code","Course Name","EC"]
[null,{"$f":"VLOOKUP(C204,elective_list,2,0)","v":""},"Choose from…",{"$f":"VLOOKUP(C204,elective_list,3,0)","v":""}]
[null,"","",""]
[null,"","",""]
[null,"","",""]
[null,"","",""]
[null,"","",""]
[null,"N/A","Genomics for Health and Env.* (12EC)",6,"No"]
[null,null,"Total:",{"$f":"SUMIF(G204:G209,\"\",D204:D209)+SUM(G204:G209)+SUMIF(E210:E210,\"Yes\",D210:D210)","v":0}]
[]
[null,null,"Natural Science Courses (6 EC)"]
[null,"Course Code","Course Name","EC"]
[]
[]
[null,null,"Total:",{"$f":"SUMIF(G215:G216,\"\",D215:D216)+SUM(G215:G216)","v":0}]
[null,"* The 6 EC of Natural Sciences course is only applicable if you have chosen not to do a minor"]
[]
[null,null,"Free Electives (6 EC)"]
[null,"Course Code","Course Name","EC"]
[]
[]
[null,null,"Total:",{"$f":"SUMIF(G222:G223,\"\",D222:D223)+SUM(G222:G223)","v":0}]
[]
[null,null,"Bachelor's Internship (12 EC)*"]
[null,"If extended, please edit the amount of EC here:",null,12]
[null,"Title:"]
[]
[null,"First supervisor:"]
[null,"Department:","List of allowed departments"]
[null,"Second supervisor:","Leave this blank if not yet known"]
[null,"Department:","Leave this blank if not yet known"]
[null,null,"Total:",{"$f":"SUM(D227)","v":12}]
[]
[]
[null,null,"Total EC:",{"$f":"SUM(D234,D211,D198,D171,D161,D217,D224)","v":48}]
[]
[null,"Extracurricular courses (above 120 EC)"]
[null,"Cursuscode","Cursusnaam","EC"]
[]
[]
[]
[]
[]
[]
[]
[]
[]
[]
[null,null,"Totaal:",{"$f":"SUM(D241:D250)","v":0}]
[]
[null,"Total EC including extracurricular courses",null,{"$f":"SUM(D251,D237)","v":48}]
[]
[]
[null,"Remarks about your programme:"]
[]
[]
[]
[]
[]
["#scheidingswoordmeteenhashtag"]

{"sheet":"Minors","index":2,"n_rows":413,"n_cols":15,"rows_kept":413,"cut":false,"hidden":true,"merged":[[234,4,234,6],[19,0,19,2],[49,4,49,6],[50,4,50,6],[138,12,138,14],[139,12,139,14],[233,4,233,6]]}
["Minor name","Minimum EC","Maximum EC"]
["Course Code","Course Name","EC","Course Chosen (If Applicable)"]
["Advanced Physics"]
["2014,2015, 2016, 2017, 2018"]
["NWI-NB017B",{"$f":"\"Gasdynamica\"","v":"Gasdynamica"},3,"Yes"]
["NWI-NB032B",{"$f":"\"Inl. Alg. Relativiteitstheorie\"","v":"Inl. Alg. Relativiteitstheorie"},3,"Yes"]
["NWI-NB029B",{"$f":"\"Elektronica\"","v":"Elektronica"},3,"Yes"]
["NWI-NB031B",{"$f":"\"Tensoren en Toepassingen\"","v":"Tensoren en Toepassingen"},3,"Yes"]
["NWI-NB020B",{"$f":"\"Inleiding Groepentheorie\"","v":"Inleiding Groepentheorie"},3,"Yes"]
["","Choose at least two out of:"]
["NWI-NB027B",{"$f":"\"Neurofysica 1\"","v":"Neurofysica 1"},3]
["NWI-NB028C",{"$f":"\"Atoom- en Molecuulfysica\"","v":"Atoom- en Molecuulfysica"},3]
["NWI-NB067C",{"$f":"\"Fysica van Oppervlakken\"","v":"Fysica van Oppervlakken"},3]
["NWI-NB034B",{"$f":"\"Subatomaire Fysica\"","v":"Subatomaire Fysica"},3]
[null,"Electives Physics or Mathematics:"]
[null,"Please add the course manually"]
[]
[]
[]
["Note: Total must add up to 30 EC!"]
["#Eindzinmeteenhastag"]
["Artificial Intelligence"]
["2018",null,null,null,"2016, 2017",null,null,null,2015]
["SOW-BKI212a","Artificiële Intelligentie: Search…",6,"Yes","SOW-BKI212a","Artificiële Intelligentie: Search…",6,"Yes","SOW-BKI212a","Artificiële Intelligentie: Search…",6,"Yes"]
["SOW-BKI247","Cognitive Robotics",6,"Yes","SOW-BKI247","Cognitive Robotics",6,"Yes","SOW-BKI242","Robotica 2",6,"Yes"]
["SOW-BKI329","Representation and interaction",6,"Yes","SOW-BKI329","Representation and interaction",6,"Yes","SOW-BKI312","Kennisrepresentatie en redeneren",6,"Yes"]
[null,"Choose one out of the following",null,null,"#Eindzinmeteenhastag",null,null,null,"#Eindzinmeteenhastag"]
["SOW-BKI211","Computational and formal modeling",6]
["SOW-BKI230A","Neural Networks",6]
["#Eindzinmeteenhastag"]
["Astronomy"]
["2014, 2015, 2016, 2017, 2018"]
["NWI-NB012B",{"$f":"\"Sterevolutie\"","v":"Sterevolutie"},3,"Yes"]
["NWI-NB058C",{"$f":"\"Planetenstelsels\"","v":"Planetenstelsels"},3,"Yes"]
["NWI-NB057B",{"$f":"\"Sterrenstelsels\"","v":"Sterrenstelsels"},3,"Yes"]
["NWI-NB059C",{"$f":"\"Space Astronomy\"","v":"Space Astronomy"},3,"Yes"]
["NWI-NB060A",{"$f":"\"Stralingsprocessen\"","v":"Stralingsprocessen"},3,"Yes"]
["NWI-NB070B",{"$f":"\"Interstellair Medium\"","v":"Interstellair Medium"},3,"Yes"]
["NWI-NB930B",{"$f":"\"Radioastronomie\"","v":"Radioastronomie"},3,"Yes"]
["NWI-NB031B",{"$f":"\"Tensoren en Toepassingen\"","v":"Tensoren en Toepassingen"},3,"Yes"]
["NWI-NB032B",{"$f":"\"Inl. Alg. Relativiteitstheorie\"","v":"Inl. Alg. Relativiteitstheorie"},3,"Yes"]
["","Choose one out of the following"]
["NWI-NB020B",{"$f":"\"Inleiding Groepentheorie\"","v":"Inleiding Groepentheorie"},3]
["NWI-NB017B",{"$f":"\"Gasdynamica\"","v":"Gasdynamica"},3]
["NWI-NB066B",{"$f":"\"Nucleaire Evolutie Heelal\"","v":"Nucleaire Evolutie Heelal"},3]
["#Eindzinmeteenhastag"]
["Biology"]
["2015, 2016, 2017"]
["NWI-BB005B",{"$f":"\"Dierfysiologie\"","v":"Dierfysiologie"},6,"Yes","2018"]
["NWI-BB069B",{"$f":"\"Plantenfysiologie\"","v":"Plantenfysiologie"},6,"Yes","Note: This minor is discontinued as of academic year 2018-2019"]
["","Choose one out of the following"]
["NWI-BB019B",{"$f":"\"Immunology\"","v":"Immunology"},6,null,"#Eindzinmeteenhastag"]
["NWI-BB039C",{"$f":"\"Neurodevelopment\"","v":"Neurodevelopment"},6]
["NWI-BB021B",{"$f":"\"Neurobiofysica\"","v":"Neurobiofysica"},6]
["NWI-MB021B",{"$f":"\"Geographic Information Systems\"","v":"Geographic Information Systems"},6]
["NWI-BB084B",{"$f":"\"Molecular Principles of Development\"","v":"Molecular Principles of Development"},6]
["NWI-BB051B",{"$f":"\"Applied Bioinformatics\"","v":"Applied Bioinformatics"},6]
["#Eindzinmeteenhastag"]
["Bioorganic Chemistry"]
["2016, 2017, 2018",null,null,null,2015,null,null,null,"2014"]
["NWI-MOL101",{"$f":"\"Essentials of Organic Chemistry\"","v":"Essentials of Organic Chemistry"},6,"Yes","NWI-MOL101",{"$f":"\"Essentials of Organic Chemistry\"","v":"Essentials of Organic Chemistry"},6,"Yes","NWI-MOL101",{"$f":"\"Essentials of Organic Chemistry\"","v":"Essentials of Organic Chemistry"},6,"Yes"]
["NWI-MOL053",{"$f":"\"Pharmacochemistry\"","v":"Pharmacochemistry"},6,"Yes","NWI-MOL094",{"$f":"\"Physical Organic Chemistry\"","v":"Physical Organic Chemistry"},3,"Yes","NWI-MOL053",{"$f":"\"Pharmacochemistry\"","v":"Pharmacochemistry"},6,"Yes"]
["NWI-MOL078",{"$f":"\"Nanobiotechnology\"","v":"Nanobiotechnology"},6,"Yes","NWI-MOL078",{"$f":"\"Nanobiotechnology\"","v":"Nanobiotechnology"},6,"Yes","NWI-MOL054",{"$f":"\"Toxicology\"","v":"Toxicology"},6,"Yes"]
[null,"Extra course (Not required)",null,null,null,null,null,null,"","Choose one of the following"]
["NWI-MOL054","Toxicology",6,null,null,null,null,null,"NWI-MOL078",{"$f":"\"Nanobiotechnology\"","v":"Nanobiotechnology"},6]
[null,null,null,null,null,null,null,null,"NWI-MOL079",{"$f":"\"Atoom- en Molecuulbouw\"","v":"Atoom- en Molecuulbouw"},3]
["#Eindzinmeteenhastag",null,null,null,"#Eindzinmeteenhastag",null,null,null,"#Eindzinmeteenhastag"]
["Business Administration"]
["2017, 2018",null,null,null,"2015, 2016"]
["MAN-BCU019B","Interventiemethodologie (BdK)",6,"Yes","MAN-BCU007",{"$f":"\"Organisatietheorie\"","v":"Organisatietheorie"},6,"Yes"]
["MAN-BCU321",{"$f":"\"Systeemtheorie\"","v":"Systeemtheorie"},6,"Yes","MAN-BCU321",{"$f":"\"Systeemtheorie\"","v":"Systeemtheorie"},6,"Yes"]
["","Choose one out of the following",null,null,"","Choose one out of the following"]
["MAN-BCU322A",{"$f":"\"Knowledge Management\"","v":"Knowledge Management"},6,null,"MAN-BCU244A",{"$f":"\"Kennismanagement\"","v":"Kennismanagement"},6]
["MAN-BCU320",{"$f":"\"Organisatieontwerp\"","v":"Organisatieontwerp"},6,null,"MAN-BCU019B",{"$f":"\"Interventiemethodologie (BdK)\"","v":"Interventiemethodologie (BdK)"},6]
["#Eindzinmeteenhastag",null,null,null,"#Eindzinmeteenhastag"]
["Computing Science (Bio, Chem and MLS)"]
["2017, 2018",null,null,null,"2014,2015, 2016"]
["NWI-IBC027",{"$f":"\"Algoritmen en Datastructuren\"","v":"Algoritmen en Datastructuren"},6,"Yes","NWI-IPC014",{"$f":"\"Imperatief Programmeren 1\"","v":"Imperatief Programmeren 1"},3,"Yes"]
["NWI-IPC002",{"$f":"\"Talen en Automaten\"","v":"Talen en Automaten"},3,"Yes","NWI-IPC015",{"$f":"\"Imperatief Programmeren 2\"","v":"Imperatief Programmeren 2"},3,"Yes"]
["NWI-IPC021",{"$f":"\"Security\"","v":"Security"},6,"Yes","NWI-IPC021",{"$f":"\"Security\"","v":"Security"},6,"Yes"]
["","Choose one out of the following",null,null,"","Choose one out of the following"]
["NWI-IPC031",{"$f":"\"Imperatief Programmeren\"","v":"Imperatief Programmeren"},6,null,"NWI-IPC002",{"$f":"\"Talen en Automaten\"","v":"Talen en Automaten"},3]
["NWI-IBC019",{"$f":"\"Operating Systems\"","v":"Operating Systems"},3,null,"NWI-IBC019",{"$f":"\"Operating Systems\"","v":"Operating Systems"},3]
["#Eindzinmeteenhastag",null,null,null,"#Eindzinmeteenhastag"]
["Computing Science (Phys & Math)"]
["2017, 2018",null,null,null,"2016,2015",null,null,null,"2014"]
["NWI-IPC031",{"$f":"\"Imperatief Programmeren\"","v":"Imperatief Programmeren"},6,"Yes","NWI-IPC014",{"$f":"\"Imperatief Programmeren 1\"","v":"Imperatief Programmeren 1"},3,"Yes","NWI-IPC014",{"$f":"\"Imperatief Programmeren 1\"","v":"Imperatief Programmeren 1"},3,"Yes"]
["NWI-IPC002",{"$f":"\"Talen en Automaten\"","v":"Talen en Automaten"},3,"Yes","NWI-IPC015",{"$f":"\"Imperatief Programmeren 2\"","v":"Imperatief Programmeren 2"},3,"Yes","NWI-IPC015",{"$f":"\"Imperatief Programmeren 2\"","v":"Imperatief Programmeren 2"},3,"Yes"]
[null,"Choose one out of the following",null,null,"NWI-IPC002",{"$f":"\"Talen en Automaten\"","v":"Talen en Automaten"},3,"Yes","NWI-IPC002",{"$f":"\"Talen en Automaten\"","v":"Talen en Automaten"},3,"Yes"]
["NWI-IPI005","Object Orientatie",6,null,null,"Choose one out of the following",null,null,"NWI-IBC026",{"$f":"\"Semantiek en Correctheid\"","v":"Semantiek en Correctheid"},3,"Yes"]
["NWI-IBC027","Algoritmen en Datastructuren",6,null,"NWI-IPI005","Object Orientatie",6,null,"NWI-WB009B",{"$f":"\"Logica 2\"","v":"Logica 2"},3,"Yes"]
[null,"Extra courses (None required)",null,null,"NWI-IBC027","Algoritmen en Datastructuren",6,null,"NWI-IBC029",{"$f":"\"Functioneel Programmeren 1\"","v":"Functioneel Programmeren 1"},3,"Yes"]
["NWI-IBI008","Data Mining",6,null,null,"Extra courses (None required)",null,null,"NWI-IBC030",{"$f":"\"Functioneel programmeren 2\"","v":"Functioneel programmeren 2"},3,"Yes"]
["NWI-IBC029","Functioneel Programmeren 1",3,null,"NWI-IBI008","Data Mining",6,null,"NWI-IBC003",{"$f":"\"Berekenbaarheid\"","v":"Berekenbaarheid"},3,"Yes"]
["NWI-IBC030","Functioneel Programmeren 2",3,null,"NWI-IBC029","Functioneel Programmeren 1",3,null,"NWI-IBC028",{"$f":"\"Complexiteit\"","v":"Complexiteit"},3,"Yes"]
["NWI-IBC026","Semantiek en Correctheid",3,null,"NWI-IBC030","Functioneel Programmeren 2",3,null,null,"Note: This minor is for Mathematics students only"]
["NWI-IBC028","Complexiteit",3,null,"NWI-IBC026","Semantiek en Correctheid",3,null,"#Eindzinmeteenhastag"]
["NWI-IBC022","Network Security",3,null,"NWI-IBC028","Complexiteit",3]
["NWI-IBC034","Operating Systems Security",3,null,"NWI-IBC022","Network Security",3]
["#Eindzinmeteenhastag",null,null,null,"NWI-IBC034","Operating Systems Security",3]
[null,null,null,null,"#Eindzinmeteenhastag"]
["Economics"]
["2015, 2016, 2017"]
["","Choose at least 18 EC out of the following"]
["MAN-BCU168",{"$f":"\"Accounting\"","v":"Accounting"},6]
["MAN-BCU2005",{"$f":"\"Behavioural Finance\"","v":"Behavioural Finance"},6]
["MAN-BCU2020",{"$f":"\"Corporate Finance\"","v":"Corporate Finance"},6]
["MAN-BCU2016",{"$f":"\"Financial Accounting and Reporting\"","v":"Financial Accounting and Reporting"},6]
["MAN-BCU302",{"$f":"\"Geschiedenis van het economisch denken\"","v":"Geschiedenis van het economisch denken"},6]
["MAN-BCU2037",{"$f":"\"International Financial Policy\"","v":"International Financial Policy"},6]
["MAN-BCU3022",{"$f":"\"Investment Management\"","v":"Investment Management"},6]
["MAN-BPRA347",{"$f":"\"Kwalitatieve onderzoeksmethodologie\"","v":"Kwalitatieve onderzoeksmethodologie"},6]
["MAN-BCU163",{"$f":"\"Macro-economie\"","v":"Macro-economie"},6]
["MAN-BCU2004",{"$f":"\"Management Accounting and Control\"","v":"Management Accounting and Control"},6]
["MAN-BPRA203",{"$f":"\"Methods of Economic Research\"","v":"Methods of Economic Research"},6]
["MAN-BCU2039",{"$f":"\"Multinational Finance\"","v":"Multinational Finance"},6]
["MAN-BPRO208",{"$f":"\"Project: Financial Instruments\"","v":"Project: Financial Instruments"},6]
["MAN-BCU3016",{"$f":"\"Topics in Business Economics\"","v":"Topics in Business Economics"},6]
["MAN-BCU3019",{"$f":"\"Topics in Financial Economics\"","v":"Topics in Financial Economics"},6]
["MAN-BCU328",{"$f":"\"Voortgezet boekhouden\"","v":"Voortgezet boekhouden"},6]
["#Eindzinmeteenhastag"]
["Education"]
["2014, 2015, 2016, 2017, 2018"]
["N/A","Education Minor",30,"Yes"]
[]
[null,"Programme determined by the 'RDA'"]
["#Eindzinmeteenhastag"]
["Environmental Chemistry"]
["2015, 2016, 2017, 2018"]
["NWI-MB021B",{"$f":"\"Geographic Information Systems\"","v":"Geographic Information Systems"},6,"Yes"]
["NWI-NB046C",{"$f":"\"Chemie&Fys.v.d.Atmosfeer\"","v":"Chemie&Fys.v.d.Atmosfeer"},3,"Yes"]
["NWI-MOL091",{"$f":"\"Green Chemistry\"","v":"Green Chemistry"},3,"Yes"]
["NWI-MOL054",{"$f":"\"Toxicology\"","v":"Toxicology"},6,"Yes"]
["NWI-MB024C","Human and Ecological Risk Assessment",6,"Yes"]
["NWI-MOL065",{"$f":"\"Chemometrics\"","v":"Chemometrics"},6,"Yes"]
["#Eindzinmeteenhastag"]
["Global Challenges, Science and Entrepreneurship"]
["2016",null,null,null,2015,null,null,null,"2014",null,null,null,"2017"]
["NWI-GCSE004",{"$f":"\"Biodiversity and Ecosystems\"","v":"Biodiversity and Ecosystems"},3,"Yes","NWI-GCSE007",{"$f":"\"Beleid, Ondernemerschap en Innovatie\"","v":"Beleid, Ondernemerschap en Innovatie"},3,"Yes","MAN-BKV55","Duurzaam Ondernemen",6,"Yes","Note: This minor is discontinued as of academic year 2017 - 2018"]
["NWI-GCSE002",{"$f":"\"Energy and Sustainability\"","v":"Energy and Sustainability"},3,"Yes",null,"Choose three of the following",null,null,"NWI-GCSE007",{"$f":"\"Beleid, ondernemerschap en innovatie\"","v":"Beleid, ondernemerschap en innovatie"},3,"Yes"]
["NWI-GCSE001",{"$f":"\"Climate Change: Science & Policy\"","v":"Climate Change: Science & Policy"},3,"Yes","NWI-GCSE004",{"$f":"\"Biodiversity and Ecosystems\"","v":"Biodiversity and Ecosystems"},3,null,"","Choose three of the following",null,null,"#Eindzinmeteenhastag"]
["NWI-BB079C",{"$f":"\"Water, Health and Development\"","v":"Water, Health and Development"},3,"Yes","NWI-GCSE009",{"$f":"\"Personalised Health(care)\"","v":"Personalised Health(care)"},3,null,"NWI-GCSE003",{"$f":"\"The value of water\"","v":"The value of water"},3]
["","Choose one of the following",null,null,"NWI-GCSE002","Energy and Sustainability",3,null,"NWI-GCSE004",{"$f":"\"Biodiversity and Ecosystems\"","v":"Biodiversity and Ecosystems"},3]
["MAN-BKV55",{"$f":"\"Duurzaam Ondernemen\"","v":"Duurzaam Ondernemen"},6,null,"NWI-GCSE001",{"$f":"\"Climate Change: Science & Policy\"","v":"Climate Change: Science & Policy"},3,null,"NWI-GCSE001",{"$f":"\"Climate Change: Science & Policy\"","v":"Climate Change: Science & Policy"},3]
["MAN-BCU2029",{"$f":"\"Globalising Worlds\"","v":"Globalising Worlds"},6,null,"NWI-BB079C",{"$f":"\"Water, Health and Development\"","v":"Water, Health and Development"},3,null,"NWI-GCSE002",{"$f":"\"Energy and Materials\"","v":"Energy and Materials"},3]
["NWI-GCSE008",{"$f":"\"Student Company\"","v":"Student Company"},6,null,null,"Choose one of the following",null,null,"NWI-I00036",{"$f":"\"ICT en Samenleving\"","v":"ICT en Samenleving"},3]
["#Eindzinmeteenhastag",null,null,null,"MAN-BKV55",{"$f":"\"Duurzaam Ondernemen\"","v":"Duurzaam Ondernemen"},6,null,"#Eindzinmeteenhastag"]
["",null,null,null,"MAN-BCU2024","Globalising Worlds",6,null,null,null,null,null,""]
["",null,null,null,"NWI-GCSE008","Student Company",6,null,null,null,null,null,""]
["",null,null,null,"#Eindzinmeteenhastag",null,null,null,null,null,null,null,""]
["Information Sciences"]
["2017, 2018",null,null,null,"2016",null,null,null,"2014, 2015"]
["NWI-IPC019",{"$f":"\"Modelleren\"","v":"Modelleren"},3,"Yes","NWI-IPC019",{"$f":"\"Modelleren\"","v":"Modelleren"},3,"Yes","NWI-IPC021",{"$f":"\"Security\"","v":"Security"},6,"Yes"]
["NWI-IPC021",{"$f":"\"Security\"","v":"Security"},6,"Yes","NWI-IPC021",{"$f":"\"Security\"","v":"Security"},6,"Yes","NWI-IPC019",{"$f":"\"Modelleren\"","v":"Modelleren"},3,"Yes"]
["NWI-IPC023",{"$f":"\"Requirements Engineering\"","v":"Requirements Engineering"},3,"Yes","NWI-IPC023",{"$f":"\"Requirements Engineering\"","v":"Requirements Engineering"},3,"Yes","NWI-IBK008",{"$f":"\"Architectuur Digitale Wereld\"","v":"Architectuur Digitale Wereld"},3,"Yes"]
["NWI-IBC020",{"$f":"\"Informatiesystemen\"","v":"Informatiesystemen"},3,"Yes","NWI-IBC019",{"$f":"\"Operating Systems\"","v":"Operating Systems"},3,"Yes",null,"Choose one of the following"]
["#Eindzinmeteenhastag",null,null,null,"NWI-IBC020",{"$f":"\"Informatiesystemen\"","v":"Informatiesystemen"},3,"Yes","NWI-IBC020",{"$f":"\"Informatiesystemen\"","v":"Informatiesystemen"},3]
["",null,null,null,"#Eindzinmeteenhastag",null,null,null,"NWI-IBC019",{"$f":"\"Operating Systems\"","v":"Operating Systems"},3]
["",null,null,null,"",null,null,null,"#Eindzinmeteenhastag"]
["Mathematics (Bio)"]
["2018",null,null,null,"2015, 2016, 2017"]
["NWI-WP029",{"$f":"\"Inleiding Wiskunde\"","v":"Inleiding Wiskunde"},6,"Yes","NWI-WP020",{"$f":"\"Inleiding in de Wiskunde\"","v":"Inleiding in de Wiskunde"},3,"Yes"]
["NWI-WP025",{"$f":"\"Calculus A\"","v":"Calculus A"},6,"Yes","NWI-NP003B",{"$f":"\"Calculus 1\"","v":"Calculus 1"},3,"Yes"]
["NWI-WP027",{"$f":"\"Lineaire Algebra A\"","v":"Lineaire Algebra A"},6,"Yes","NWI-NP004B",{"$f":"\"Calculus 2\"","v":"Calculus 2"},3,"Yes"]
["#Eindzinmeteenhastag",null,null,null,"NWI-NP009C",{"$f":"\"Lineaire Algebra 1\"","v":"Lineaire Algebra 1"},3,"Yes"]
[null,null,null,null,"NWI-NP010B",{"$f":"\"Lineaire Algebra 2\"","v":"Lineaire Algebra 2"},3,"Yes"]
[null,null,null,null,"#Eindzinmeteenhastag"]
["Mathematics (Comp. Science)"]
["2017, 2018",null,null,null,"2015, 2016"]
["NWI-WP030",{"$f":"\"Groepentheorie\"","v":"Groepentheorie"},6,"Yes","NWI-WP021",{"$f":"\"Groepentheorie 1\"","v":"Groepentheorie 1"},3,"Yes"]
["NWI-WP001B",{"$f":"\"Analyse 1\"","v":"Analyse 1"},6,"Yes","NWI-WP022",{"$f":"\"Groepentheorie 2\"","v":"Groepentheorie 2"},3,"Yes"]
["NWI-WB007B",{"$f":"\"Inleiding Statistiek\"","v":"Inleiding Statistiek"},3,"Yes","NWI-WP001B",{"$f":"\"Analyse 1\"","v":"Analyse 1"},6,"Yes"]
["#Eindzinmeteenhastag",null,null,null,"NWI-WB007B",{"$f":"\"Inleiding Statistiek\"","v":"Inleiding Statistiek"},3,"Yes"]
[null,null,null,null,"#Eindzinmeteenhastag"]
["Mathematics (Mol. Sciences)"]
["2017, 2018",null,null,null,"2015, 2016"]
["NWI-WP030",{"$f":"\"Groepentheorie\"","v":"Groepentheorie"},3,"Yes","NWI-WP020",{"$f":"\"Inleiding in de Wiskunde\"","v":"Inleiding in de Wiskunde"},3,"Yes"]
["NWI-WP001B",{"$f":"\"Analyse 1\"","v":"Analyse 1"},6,"Yes","NWI-NP009C",{"$f":"\"Lineaire Algebra 1\"","v":"Lineaire Algebra 1"},3,"Yes"]
["NWI-WB007B",{"$f":"\"Inleiding Statistiek\"","v":"Inleiding Statistiek"},3,"Yes","NWI-NP010B",{"$f":"\"Lineaire Algebra 2\"","v":"Lineaire Algebra 2"},3,"Yes"]
["#Eindzinmeteenhastag",null,null,null,"NWI-NP011B",{"$f":"\"Lineaire Algebra 3\"","v":"Lineaire Algebra 3"},3,"Yes"]
[null,null,null,null,"NWI-WP021",{"$f":"\"Groepentheorie 1\"","v":"Groepentheorie 1"},3,"Yes"]
[null,null,null,null,"","At least one of the following"]
[null,null,null,null,"NWI-WP022",{"$f":"\"Groepentheorie 2\"","v":"Groepentheorie 2"},3]
[null,null,null,null,"NWI-WP001B",{"$f":"\"Analyse 1\"","v":"Analyse 1"},6]
[null,null,null,null,"NWI-NP012B",{"$f":"\"Lineaire Algebra 4\"","v":"Lineaire Algebra 4"},3]
[null,null,null,null,"NWI-NB019C",{"$f":"\"Complexe Functies\"","v":"Complexe Functies"},3]
[null,null,null,null,"#Eindzinmeteenhastag"]
["Mathematics (Physics)"]
["2017, 2018",null,null,null,"2015, 2016"]
["NWI-WP029",{"$f":"\"Inleiding Wiskunde\"","v":"Inleiding Wiskunde"},6,"Yes","NWI-WP020",{"$f":"\"Inleiding in de Wiskunde\"","v":"Inleiding in de Wiskunde"},3,"Yes"]
["NWI-WP030",{"$f":"\"Groepentheorie\"","v":"Groepentheorie"},6,"Yes","NWI-WP021",{"$f":"\"Groepentheorie 1\"","v":"Groepentheorie 1"},3,"Yes"]
["NWI-WP001B",{"$f":"\"Analyse 1\"","v":"Analyse 1"},6,"Yes","NWI-WP022",{"$f":"\"Groepentheorie 2\"","v":"Groepentheorie 2"},3,"Yes"]
["NWI-WB001B",{"$f":"\"Analyse 2\"","v":"Analyse 2"},6,"Yes","NWI-NP012B",{"$f":"\"Lineaire Algebra 4\"","v":"Lineaire Algebra 4"},3,"Yes"]
["NWI-WB012B",{"$f":"\"Ringen en Lichamen\"","v":"Ringen en Lichamen"},6,"Yes","NWI-WP001B",{"$f":"\"Analyse 1\"","v":"Analyse 1"},6,"Yes"]
["#Eindzinmeteenhastag",null,null,null,"NWI-WB001B",{"$f":"\"Analyse 2\"","v":"Analyse 2"},6,"Yes"]
[null,null,null,null,"NWI-WB012B",{"$f":"\"Ringen en Lichamen\"","v":"Ringen en Lichamen"},6,"Yes"]
[null,null,null,null,"#Eindzinmeteenhastag"]
["Medical Biology"]
["2018",null,null,null,"2017",null,null,null,"2016",null,null,null,"2015, 2014"]
["","Choose at least 30 EC out of the following",null,null,"","Choose at least 30 EC out of the following",null,null,"","Choose at least 30 EC out of the following",null,null,null,"Choose at least 30 EC out of the following"]
["NWI-BB017C","Biochemistry and molecular biology II",6,null,"NWI-BB023B",{"$f":"\"Animal Cell Biology\"","v":"Animal Cell Biology"},6,null,"NWI-BB017C",{"$f":"\"Biochemistry and Molecular Biology II\"","v":"Biochemistry and Molecular Biology II"},6,null,"NWI-BB017C",{"$f":"\"Biochemistry and Molecular Biology II\"","v":"Biochemistry and Molecular Biology II"},6]
["NWI-BB019B","Immunology",6,null,"NWI-BB051B",{"$f":"\"Applied Bioinformatics\"","v":"Applied Bioinformatics"},6,null,"NWI-BB023B",{"$f":"\"Celbiologie van Dieren\"","v":"Celbiologie van Dieren"},6,null,"NWI-BB023B",{"$f":"\"Celbiologie van Dieren\"","v":"Celbiologie van Dieren"},6]
["NWI-BB021B","Neurobiofysica",6,null,"NWI-BB017C",{"$f":"\"Biochemistry and Molecular Biology II\"","v":"Biochemistry and Molecular Biology II"},6,null,"NWI-BB081B",{"$f":"\"Cognitive Neuroimaging\"","v":"Cognitive Neuroimaging"},6,null,"NWI-BB081B",{"$f":"\"Cognitive Neuroimaging\"","v":"Cognitive Neuroimaging"},6]
["NWI-BB023B","Animal cell biology",6,null,"NWI-BB081B",{"$f":"\"Cognitive Neuroimaging\"","v":"Cognitive Neuroimaging"},6,null,"NWI-BB048B",{"$f":"\"Endocrinologie\"","v":"Endocrinologie"},6,null,"NWI-BB048B",{"$f":"\"Endocrinologie\"","v":"Endocrinologie"},6]
["NWI-BB025B","Human pathology",6,null,"NWI-BB048B",{"$f":"\"Endocrinology\"","v":"Endocrinology"},6,null,"NWI-BB064B",{"$f":"\"Functionele Genomics\"","v":"Functionele Genomics"},6,null,"NWI-BB064B",{"$f":"\"Functionele Genomics\"","v":"Functionele Genomics"},6]
["NWI-BB034B","Neurobiology",6,null,"NWI-BB064B",{"$f":"\"Functionele Genomics\"","v":"Functionele Genomics"},6,null,"NWI-BB085B",{"$f":"\"Hersenen en Gedrag\"","v":"Hersenen en Gedrag"},6,null,"NWI-BB085B",{"$f":"\"Hersenen en Gedrag\"","v":"Hersenen en Gedrag"},6]
["NWI-BB039C","Neurodevelopment",6,null,"NWI-BB047C",{"$f":"\"Human Embr. and Dev.Biology\"","v":"Human Embr. and Dev.Biology"},6,null,"NWI-BB047C",{"$f":"\"Human Embr. and Dev.Biology\"","v":"Human Embr. and Dev.Biology"},6,null,"NWI-BB047C",{"$f":"\"Human Embr. and Dev.Biology\"","v":"Human Embr. and Dev.Biology"},6]
["NWI-BB047C","Human embryology and developmental biology",6,null,"NWI-BB025B",{"$f":"\"Human Pathology\"","v":"Human Pathology"},6,null,"NWI-BB019B",{"$f":"\"Immunology\"","v":"Immunology"},6,null,"NWI-BB019B",{"$f":"\"Immunology\"","v":"Immunology"},6]
["NWI-BB048B","Endocrinology",6,null,"NWI-BB019B",{"$f":"\"Immunology\"","v":"Immunology"},6,null,"NWI-BB025B",{"$f":"\"Medische Pathologie\"","v":"Medische Pathologie"},6,null,"NWI-BB025B",{"$f":"\"Medische Pathologie\"","v":"Medische Pathologie"},6]
["NWI-BB063B","Neuroscience: from basics to clinic",6,null,"NWI-MOL104",{"$f":"\"Medical Biotechnology\"","v":"Medical Biotechnology"},6,null,"NWI-BB084B",{"$f":"\"Molecular Principles of Development\"","v":"Molecular Principles of Development"},6,null,"NWI-BB084B",{"$f":"\"Molecular Principles of Development\"","v":"Molecular Principles of Development"},6]
["NWI-BB064B","Functional genomics",6,null,"NWI-BB021B",{"$f":"\"Neurobiofysica\"","v":"Neurobiofysica"},6,null,"NWI-BB034B",{"$f":"\"Neurobiologie\"","v":"Neurobiologie"},6,null,"NWI-BB034B",{"$f":"\"Neurobiologie\"","v":"Neurobiologie"},6]
["NWI-BB065B","Pathophysiology of the kidney",6,null,"NWI-BB034B",{"$f":"\"Neurobiologie\"","v":"Neurobiologie"},6,null,"NWI-BB021B",{"$f":"\"Neurobiofysica\"","v":"Neurobiofysica"},6,null,"NWI-BB021B",{"$f":"\"Neurobiofysica\"","v":"Neurobiofysica"},6]
["NWI-BB080B","Neurophysiology of cognition and behaviour",6,null,"NWI-BB039C",{"$f":"\"Neurodevelopment\"","v":"Neurodevelopment"},6,null,"NWI-BB039C",{"$f":"\"Neurodevelopment\"","v":"Neurodevelopment"},6,null,"NWI-BB039C",{"$f":"\"Neurodevelopment\"","v":"Neurodevelopment"},6]
["NWI-BB081B","Cognitive neuroimaging",6,null,"NWI-BB080B",{"$f":"\"Neurophys. of Cognition and Behaviour\"","v":"Neurophys. of Cognition and Behaviour"},6,null,"NWI-BB080B",{"$f":"\"Neurophys. of Cognition and Behaviour\"","v":"Neurophys. of Cognition and Behaviour"},6,null,"NWI-BB080B",{"$f":"\"Neurophys. of Cognition and Behaviour\"","v":"Neurophys. of Cognition and Behaviour"},6]
["NWI-BB084B","Molecular principles of development",6,null,"NWI-BB063B",{"$f":"\"Neuroscience:van Basis tot Kliniek\"","v":"Neuroscience:van Basis tot Kliniek"},6,null,"NWI-BB063B",{"$f":"\"Neuroscience:van Basis tot Kliniek\"","v":"Neuroscience:van Basis tot Kliniek"},6,null,"NWI-BB063B",{"$f":"\"Neuroscience:van Basis tot Kliniek\"","v":"Neuroscience:van Basis tot Kliniek"},6]
["NWI-BB085B","Brain and behaviour",6,null,"NWI-BB065B",{"$f":"\"Pathofysiology of the Kidney\"","v":"Pathofysiology of the Kidney"},6,null,"NWI-BB065B",{"$f":"\"Pathofysiologie van de Nier\"","v":"Pathofysiologie van de Nier"},6,null,"NWI-BB065B",{"$f":"\"Pathofysiologie van de Nier\"","v":"Pathofysiologie van de Nier"},6]
["NWI-BB086","Genomics for health and environment",12,null,"MED-MIN16","Translational Neuroscience",12,null,"NWI-BB051B",{"$f":"\"Applied Bioinformatics\"","v":"Applied Bioinformatics"},6,null,"NWI-BB051B",{"$f":"\"Applied Bioinformatics\"","v":"Applied Bioinformatics"},6]
["NWI-MOL104","Medical biotechnology",6,null,"#Eindzinmeteenhastag",null,null,null,"NWI-MOL104",{"$f":"\"Medical Biotechnology\"","v":"Medical Biotechnology"},6,null,"NWI-BB031B",{"$f":"\"Medische Biotechnologie\"","v":"Medische Biotechnologie"},6]
["MED-MIN16","Translational neuroscience",12,null,null,null,null,null,"MED-MIN16","Translational Neuroscience",12,null,"#Eindzinmeteenhastag"]
["#Eindzinmeteenhastag",null,null,null,null,null,null,null,"#Eindzinmeteenhastag"]
["Medicine"]
["2016, 2017, 2018",null,null,null,"2011, 2012, 2013, 2014, 2015"]
["NWI-BB101","Mech. van gezondheid en ziekte deel 1",6,"Yes","NWI-BB075B1","Methoden van geneeskunde",6,"Yes"]
["NWI-BB102","Mech. van gezondheid en ziekte deel 2",6,"Yes","NWI-BB075B2","Inl. in de oncologie, immunologie, hematologie en infectieziekten",6,"Yes"]
["NWI-BB103","Praktijk en principes van de GNK deel 1",3,"Yes","NWI-BB075B3","Inl. in de aandoeningen van circulatie en respiratie en hyperlipidemie",6,"Yes"]
["NWI-BB104","Praktijk en principes van de GNK deel 2",4,"Yes","NWI-BB075B4","Inl. in de aandoeningen van de tractus digestivus",6,"Yes"]
["NWI-BB105","Patiënt contact onderwijs ",3,"Yes","NWI-BB075B5","Inl. in de Nefrologie & Urologie",6,"Yes"]
["NWI-BB106","Anatomie: Hoofdlijnen Func. Morfologie",6,"Yes","#Eindzinmeteenhastag"]
["NWI-BB107","Farmacologie",2,"Yes"]
["NWI-BB108","Medisch professionele vorming",0,"Yes"]
["#Eindzinmeteenhastag"]
["Nanoscience"]
["2015, 2016",null,null,null,"2017"]
["NWI-NP007B",{"$f":"\"Speciale Relativiteitstheorie\"","v":"Speciale Relativiteitstheorie"},3,"Yes","Note: This minor is discontinued as of academic year 2017 - 2018"]
["NWI-MOL039",{"$f":"\"Fysisch Practicum\"","v":"Fysisch Practicum"},6,"Yes"]
["NWI-NP027B",{"$f":"\"Inl. Nanowet. en Technol.\"","v":"Inl. Nanowet. en Technol."},3,"Yes","#Eindzinmeteenhastag"]
["NWI-NB044B",{"$f":"\"Nanofysica\"","v":"Nanofysica"},3,"Yes"]
["NWI-NB071B",{"$f":"\"SdM: Atoom- en Molecuulfysica\"","v":"SdM: Atoom- en Molecuulfysica"},3,"Yes"]
["NWI-NB072B",{"$f":"\"SdM:Vaste stoffysica\"","v":"SdM:Vaste stoffysica"},3,"Yes"]
["NWI-NB029B",{"$f":"\"Elektronica\"","v":"Elektronica"},3,"Yes"]
["#Eindzinmeteenhastag"]
["Neuroscience (Math)"]
["2018",null,null,null,"2015, 2016, 2017",null,null,null,2014]
["NWI-NB027B",{"$f":"\"Neurofysica 1\"","v":"Neurofysica 1"},3,"Yes","NWI-NB027B",{"$f":"\"Neurofysica 1\"","v":"Neurofysica 1"},3,"Yes","NWI-WB007B",{"$f":"\"Inleiding Statistiek\"","v":"Inleiding Statistiek"},3,"Yes"]
["NWI-NB074B",{"$f":"\"Neurofysica 2\"","v":"Neurofysica 2"},3,"Yes","NWI-NB074B",{"$f":"\"Neurofysica 2\"","v":"Neurofysica 2"},3,"Yes","NWI-NP008C",{"$f":"\"Warmteleer\"","v":"Warmteleer"},3,"Yes"]
["NWI-NB062B",{"$f":"\"Inleiding Machine Learning\"","v":"Inleiding Machine Learning"},3,"Yes","NWI-NB062B",{"$f":"\"Inleiding Machine Learning\"","v":"Inleiding Machine Learning"},3,"Yes","NWI-NB033C",{"$f":"\"Statistische Mechanica\"","v":"Statistische Mechanica"},6,"Yes"]
["NWI-NB036B",{"$f":"\"Psychofysica 1\"","v":"Psychofysica 1"},3,"Yes","NWI-NB036B",{"$f":"\"Psychofysica 1\"","v":"Psychofysica 1"},3,"Yes","NWI-NB001B",{"$f":"\"Analytische Mechanica\"","v":"Analytische Mechanica"},3,"Yes"]
["NWI-NB068B",{"$f":"\"Nonlinear Dynamics,Chaos and Application\"","v":"Nonlinear Dynamics,Chaos and Application"},3,"Yes","NWI-NB068B",{"$f":"\"Nonlinear Dynamics,Chaos and Application\"","v":"Nonlinear Dynamics,Chaos and Application"},3,"Yes","NWI-WB049B",{"$f":"\"Inleiding Fouriertheorie\"","v":"Inleiding Fouriertheorie"},3,"Yes"]
["NWI-MOL014",{"$f":"\"Electricity and Magnetism 1A\"","v":"Electricity and Magnetism 1A"},3,"Yes","","Choose one of the following",null,null,"NWI-WB064B",{"$f":"\"Toegepaste Stochastiek\"","v":"Toegepaste Stochastiek"},6,"Yes"]
["","Choose one of the following",null,null,"NWI-NP008C",{"$f":"\"Warmteleer\"","v":"Warmteleer"},3,null,"NWI-NB062B",{"$f":"\"Inleiding Machine Learning\"","v":"Inleiding Machine Learning"},3,"Yes"]
["NWI-NP008C",{"$f":"\"Warmteleer\"","v":"Warmteleer"},3,null,"NWI-MOL017",{"$f":"\"Thermodynamics\"","v":"Thermodynamics"},3,null,"NWI-NB027B",{"$f":"\"Neurofysica 1\"","v":"Neurofysica 1"},3,"Yes"]
["NWI-MOL017",{"$f":"\"Thermodynamics\"","v":"Thermodynamics"},3,null,"","Choose one of the following",null,null,"#Eindzinmeteenhastag"]
["#Eindzinmeteenhastag",null,null,null,"NWI-NP019B",{"$f":"\"Elektriciteit en Magnetisme 1B\"","v":"Elektriciteit en Magnetisme 1B"},3]
[null,null,null,null,"NWI-MOL014",{"$f":"\"Electricity and Magnetism 1A\"","v":"Electricity and Magnetism 1A"},3]
[null,null,null,null,"#Eindzinmeteenhastag"]
["Neuroscience (Physics and Science)"]
["2015, 2016, 2017, 2018",null,null,null,"2014"]
["NWI-NB027B",{"$f":"\"Neurofysica 1\"","v":"Neurofysica 1"},3,"Yes","NWI-WB006C",{"$f":"\"Voortgezette Kansrekening\"","v":"Voortgezette Kansrekening"},3,"Yes"]
["NWI-NB074B",{"$f":"\"Neurofysica 2\"","v":"Neurofysica 2"},3,"Yes","NWI-NB027B",{"$f":"\"Neurofysica 1\"","v":"Neurofysica 1"},3,"Yes"]
["NWI-NB062B",{"$f":"\"Inleiding Machine Learning\"","v":"Inleiding Machine Learning"},3,"Yes","NWI-NB074B",{"$f":"\"Neurofysica 2\"","v":"Neurofysica 2"},3,"Yes"]
["NWI-NB036B",{"$f":"\"Psychofysica 1\"","v":"Psychofysica 1"},3,"Yes","NWI-MOL058",{"$f":"\"Introduction to Magnetic Resonance\"","v":"Introduction to Magnetic Resonance"},3,"Yes"]
["NWI-NB068B",{"$f":"\"Nonlinear Dynamics,Chaos and Application\"","v":"Nonlinear Dynamics,Chaos and Application"},3,"Yes","NWI-NB062B",{"$f":"\"Inleiding Machine Learning\"","v":"Inleiding Machine Learning"},3,"Yes"]
["#Eindzinmeteenhastag",null,null,null,"NWI-WB064B",{"$f":"\"Toegepaste Stochastiek\"","v":"Toegepaste Stochastiek"},6,"Yes"]
[null,null,null,null,"NWI-MOL074",{"$f":"\"Inleiding in de Neuroimaging Technieken\"","v":"Inleiding in de Neuroimaging Technieken"},3,"Yes"]
[null,null,null,null,"NWI-NB068B",{"$f":"\"Nonlinear Dynamics,Chaos and Application\"","v":"Nonlinear Dynamics,Chaos and Application"},3,"Yes"]
[null,null,null,null,"","Choose one of the following"]
[null,null,null,null,"NWI-WB007B",{"$f":"\"Inleiding Statistiek\"","v":"Inleiding Statistiek"},3]
[null,null,null,null,"NWI-NB036B",{"$f":"\"Psychofysica 1\"","v":"Psychofysica 1"},3]
[null,null,null,null,"NWI-NM102",{"$f":"\"Auditory Perception and Technology\"","v":"Auditory Perception and Technology"},3]
[null,null,null,null,null,"NOTE: This minor is primarily meant for Physics students"]
[null,null,null,null,"#Eindzinmeteenhastag"]
["Physical Organic Chemistry"]
["2017, 2018",null,null,null,"2015, 2016",null,null,null,"2014"]
["NWI-MOL101",{"$f":"\"Essentials of Organic Chemistry\"","v":"Essentials of Organic Chemistry"},6,"Yes","NWI-MOL101",{"$f":"\"Essentials of Organic Chemistry\"","v":"Essentials of Organic Chemistry"},6,"Yes","NWI-MOL101",{"$f":"\"Essentials of Organic Chemistry\"","v":"Essentials of Organic Chemistry"},6,"Yes"]
["NWI-MOL071","Crystal Growth",3,"Yes","NWI-MOL057",{"$f":"\"Magnetic Resonance\"","v":"Magnetic Resonance"},6,"Yes","NWI-MOL040",{"$f":"\"Thermodynamica 2\"","v":"Thermodynamica 2"},3,"Yes"]
["NWI-MOL094",{"$f":"\"Physical Organic Chemistry\"","v":"Physical Organic Chemistry"},3,"Yes","NWI-MOL094",{"$f":"\"Physical Organic Chemistry\"","v":"Physical Organic Chemistry"},3,"Yes","NWI-MOL094",{"$f":"\"Fysisch Organische Chemie\"","v":"Fysisch Organische Chemie"},3,"Yes"]
["NWI-MOL106","Toegepaste Quantumchemie",3,"Yes","NWI-MOL071",{"$f":"\"Kristalgroei\"","v":"Kristalgroei"},3,"Yes","NWI-MOL071",{"$f":"\"Kristalgroei\"","v":"Kristalgroei"},3,"Yes"]
[null,null,null,null,null,null,null,null,"#Eindzinmeteenhastag"]
[]
[]
["#Eindzinmeteenhastag",null,null,null,"#Eindzinmeteenhastag"]
["Physics"]
["2018",null,null,null,"2017",null,null,null,"2015, 2016"]
["NWI-NP035",{"$f":"\"Lineaire Mechanica\"","v":"Lineaire Mechanica"},6,"Yes","NWI-NB001B",{"$f":"\"Analytische Mechanica\"","v":"Analytische Mechanica"},3,"Yes","NWI-NP001B",{"$f":"\"Mechanica 1B\"","v":"Mechanica 1B"},3,"Yes"]
["NWI-NP036","Rotaties en Periodiek Bewegingen",3,"Yes","NWI-NP019B",{"$f":"\"Elektriciteit en Magnetisme\"","v":"Elektriciteit en Magnetisme"},6,"Yes","NWI-NP002B",{"$f":"\"Mechanica 2B\"","v":"Mechanica 2B"},3,"Yes"]
["NWI-NP021D",{"$f":"\"Golven en Optica\"","v":"Golven en Optica"},3,"Yes","NWI-NP022B",{"$f":"\"Inleiding Kwantummechanica\"","v":"Inleiding Kwantummechanica"},3,"Yes","NWI-NP021D",{"$f":"\"Golven en Optica\"","v":"Golven en Optica"},3,"Yes"]
["NWI-NP022B",{"$f":"\"Inleiding Kwantummechanica\"","v":"Inleiding Kwantummechanica"},3,"Yes","NWI-NB013B",{"$f":"\"Kwantummechanica 1a\"","v":"Kwantummechanica 1a"},3,"Yes","NWI-NP022B",{"$f":"\"Inleiding Kwantummechanica\"","v":"Inleiding Kwantummechanica"},3,"Yes"]
["NWI-NB001C",{"$f":"\"Voortgezette Mechanica\"","v":"Voortgezette Mechanica"},6,"Yes","NWI-NB014B",{"$f":"\"Kwantummechanica 1b\"","v":"Kwantummechanica 1b"},3,"Yes","NWI-NB006B",{"$f":"\"Trillingen en Golven\"","v":"Trillingen en Golven"},3,"Yes"]
["NWI-NP037",{"$f":"\"Elektriciteit en Magnetisme\"","v":"Elektriciteit en Magnetisme"},6,"Yes","NWI-NP035",{"$f":"\"Lineaire Mechanica\"","v":"Lineaire Mechanica"},6,"Yes","NWI-NB001B",{"$f":"\"Analytische Mechanica\"","v":"Analytische Mechanica"},3,"Yes"]
["#Eindzinmeteenhastag",null,null,null,"NWI-NP036","Rotaties en Periodieke Bewegingen",3,"Yes","NWI-NP019B",{"$f":"\"Elektriciteit en Magnetisme 1B\"","v":"Elektriciteit en Magnetisme 1B"},3,"Yes"]
[null,null,null,null,"NWI-NB006B",{"$f":"\"Trillingen en Golven\"","v":"Trillingen en Golven"},3,"Yes","NWI-NB013B",{"$f":"\"Kwantummechanica 1a\"","v":"Kwantummechanica 1a"},3,"Yes"]
[null,null,null,null,"#Eindzinmeteenhastag",null,null,null,"NWI-NP020B",{"$f":"\"Elektriciteit en Magnetisme 2B\"","v":"Elektriciteit en Magnetisme 2B"},3,"Yes"]
[null,null,null,null,null,null,null,null,"NWI-NB014B",{"$f":"\"Kwantummechanica 1b\"","v":"Kwantummechanica 1b"},3,"Yes"]
[null,null,null,null,null,null,null,null,"#Eindzinmeteenhastag"]
["Sustainable Chemistry"]
["2014, 2015, 2016, 2017, 2018"]
["NWI-MOL101",{"$f":"\"Essentials of Organic Chemistry\"","v":"Essentials of Organic Chemistry"},6,"Yes"]
["NWI-MOL091",{"$f":"\"Green Chemistry\"","v":"Green Chemistry"},3,"Yes"]
["NWI-MB021B",{"$f":"\"Geographic Information Systems\"","v":"Geographic Information Systems"},6,"Yes"]
[]
[]
[]
["#Eindzinmeteenhastag"]
["Other"]
["2014, 2015, 2016, 2017, 2018, 2019, 2020"]
["",null,null,"Yes"]
["",null,null,"Yes"]
["",null,null,"Yes"]
["",null,null,"Yes"]
["",null,null,"Yes"]
[""]
[""]
[""]
[""]
[""]
[""]
["Name of your minor:"]
["Prospectus link if minor outside FNWI:"]
["#Eindzinmeteenhastag"]
[]
["No Minor"]
["2014, 2015, 2016, 2017, 2018, 2019, 2020"]
["You have chosen not to do a minor."]
[]
["#Eindzinmeteenhastag"]
[]
[]
["Informatiekunde voor Informatica (2014)"]
["2016,2015,2014,Select your prospectus,Kies de studiegids"]
["NWI-IBK008",{"$f":"\"Architectuur Digitale Wereld\"","v":"Architectuur Digitale Wereld"},3,"Yes"]
["MAN-BCU321",null,null,"Yes"]
["","Choose one of the following"]
["MAN-BCU019","Intervention Methodology",6]
["MAN-BCU244A","Kennismanagement",6]
["#Eindzinmeteenhastag"]
[]
["Bedrijfskunde voor Informatica (2014)"]
["2016,2015,2014,Select your prospectus,Kies de studiegids"]
["MAN-BCU007",null,null,"Yes"]
["MAN-BCU321",null,null,"Yes"]
["","Choose one of the following"]
["MAN-BCU244A","Kennismanagement",6]
["MAN-BCU019","Intervention Methodology",6]
["#Eindzinmeteenhastag"]
[]
["Biologie (Math) (2014)"]
["2016,2015,2014,Select your prospectus,Kies de studiegids"]
["NWI-BP007B",{"$f":"\"Celbiochemie\"","v":"Celbiochemie"},6,"Yes"]
["NWI-BB023B",{"$f":"\"Celbiologie van Dieren\"","v":"Celbiologie van Dieren"},6,"Yes"]
["NWI-BB017C",{"$f":"\"Biochemistry and Molecular Biology II\"","v":"Biochemistry and Molecular Biology II"},6,"Yes"]
["NWI-BB051B",{"$f":"\"Toegepaste Bioinformatica\"","v":"Toegepaste Bioinformatica"},6,"Yes"]
["#Eindzinmeteenhastag"]
[]
["Double Minor"]
["2014, 2015, 2016, 2017, 2018, 2019, 2020"]
["Minor 1:"]
[null,null,null,"Yes"]
[null,null,null,"Yes"]
[null,null,null,"Yes"]
[null,null,null,"Yes"]
[null,null,null,"Yes"]
[null,null,null,"Yes"]
[null,null,null,"Yes"]
[null,null,null,"Yes"]
[null,null,null,"Yes"]
[null,null,null,"Yes"]
["Minor 2:"]
[null,null,null,"Yes"]
[null,null,null,"Yes"]
[null,null,null,"Yes"]
[null,null,null,"Yes"]
[null,null,null,"Yes"]
[null,null,null,"Yes"]
[null,null,null,"Yes"]
[null,null,null,"Yes"]
[null,null,null,"Yes"]
[null,null,null,"Yes"]
["Name of minor 1:"]
["Prospectus link if minor outside FNWI:"]
["Name of minor 2:"]
["Prospectus link if minor outside FNWI:"]
["#Eindzinmeteenhastag"]
["Minor from another faculty"]
["2014, 2015, 2016, 2017, 2018, 2019, 2020"]
["",null,null,"Yes"]
["",null,null,"Yes"]
["",null,null,"Yes"]
["",null,null,"Yes"]
["",null,null,"Yes"]
[""]
[""]
[""]
[""]
[""]
[""]
["Name of your minor:"]
["Prospectus link (if applicable):"]
["#Eindzinmeteenhastag"]
["Free Minor"]
["2014, 2015, 2016, 2017, 2018, 2019, 2020"]
["",null,null,"Yes"]
["",null,null,"Yes"]
["",null,null,"Yes"]
["",null,null,"Yes"]
["",null,null,"Yes"]
[""]
[""]
[""]
[""]
[""]
[""]
["Name of your minor:"]
["#Eindzinmeteenhastag"]

{"sheet":"Selections","index":3,"n_rows":83,"n_cols":16,"rows_kept":83,"cut":false,"hidden":true,"merged":[]}
[null,null,null,null,null,null,null,null,null,null,null,null,"Selection per Cohort"]
[]
[null,null,null,null,null,"Yes","Cohort","Minor","Prospectus"]
[null,null,null,null,null,"No","Please Select…","Please select your minor here","Select your prospectus"]
[null,null,null,null,null,null,2013,"Biology",2014]
[null,null,null,null,null,null,2014,"Computing Science (Bio, Chem and MLS)",2015]
[null,null,null,null,null,null,2015,"Education",2016]
[null,null,null,null,null,null,2016,"Environmental Chemistry",2017]
[null,null,null,null,null,null,"2017","Global Challenges, Science and Entrepreneurship",2018]
[null,null,null,null,null,null,"2018","Information Sciences"]
[null,null,null,null,null,null,null,"Mathematics (Mol. Sciences)"]
[null,null,null,null,null,null,null,"Nanoscience"]
[]
[null,null,null,null,null,null,null,"Milieuchemie (2014)"]
[]
[null,null,null,null,null,null,null,"Minor from another faculty"]
[null,null,null,null,null,null,null,"Free Minor"]
[]
[]
[]
[]
[]
[null,"Internship departments",null,null,null,null,null,null,null,null,null,null,null,"Choose your priority courses","",""]
[null,null,null,null,null,null,null,null,null,null,null,null,null,"","",""]
[null,"List of allowed departments",null,null,null,null,null,null,null,null,null,null,null,"Animal Cell Biology","NWI-BB023B",6]
[null,null,null,null,null,null,null,null,null,null,null,null,null,"Biochemistry & Molecular Biology II","NWI\u0081-BB017C",6]
[null,"Analytical Chemistry",null,null,null,null,null,null,null,null,null,null,null,"Biophysical Chemistry","NWI-MOL111",3]
[null,"Biochemistry",null,null,null,null,null,null,null,null,null,null,null,"Chemical Biology Project  ","NWI\u0081-MOL049A",6]
[null,"Bioinformatics (CMBI )",null,null,null,null,null,null,null,null,null,null,null,"Chemometrics for Mol. Life Sciences ","NWI-MOL109",6]
[null,"Biomolecular Chemistry",null,null,null,null,null,null,null,null,null,null,null,"Comparative Genomics","NWI\u0081-MOL073",3]
[null,"Bio-Organic Chemistry",null,null,null,null,null,null,null,null,null,null,null,"Functional Genomics   ","NWI\u0081-BB064B",6]
[null,"Biophysical Chemistry",null,null,null,null,null,null,null,null,null,null,null,"Genomics for Health and Env.* (12EC)","NWI\u0081-BB086",6]
[null,"Biophysics",null,null,null,null,null,null,null,null,null,null,null,"Immunology","NWI-BB019B",6]
[null,"Cell Biology",null,null,null,null,null,null,null,null,null,null,null,"Medical Biotechnology","NWI-MOL104",6]
[null,"Cognitive Neuroscience/Molecular Neurophysiology",null,null,null,null,null,null,null,null,null,null,null,"Medische Biotechnologie (2013 and before)","NWI-BB031B",6]
[null,"Cognitive Neuroscience/Translational Affective Neuroscience",null,null,null,null,null,null,null,null,null,null,null,"Molecular Basis of Diseases","NWI-MOL055",6]
[null,"Dermatology",null,null,null,null,null,null,null,null,null,null,null,"Molecular Principles of Development","NWI-BB084B",6]
[null,"Donders Centre for Cognitive Neuroscience",null,null,null,null,null,null,null,null,null,null,null,"Nanobiotechnology","NWI-MOL078",6]
[null,"Experimental Urology",null,null,null,null,null,null,null,null,null,null,null,"Neurobiology","NWI-BB034B",6]
[null,"Experimental Urology",null,null,null,null,null,null,null,null,null,null,null,"Neuroscience","NWI-BB063B",6]
[null,"Glomerular diseases and Transplantation Immunology",null,null,null,null,null,null,null,null,null,null,null,"Organic Chemistry","NWI-MOL095",6]
[null,"Hematology",null,null,null,null,null,null,null,null,null,null,null,"Pharmacochemistry","NWI-MOL053",6]
[null,"Human genetics",null,null,null,null,null,null,null,null,null,null,null,"Quantummech. & Spect. Biol. Persp.","NWI-MOL083",6]
[null,"Laboratory Medicine",null,null,null,null,null,null,null,null,null,null,null,"RNA Structure and Function","NWI-MOL107",6]
[null,"Laboratory Medicine: Translational Metabolic Laboratory",null,null,null,null,null,null,null,null,null,null,null,"Single Molecule Studies","NWI-MOL082",3]
[null,"Language and genetics",null,null,null,null,null,null,null,null,null,null,null,"Spectroscopy of Biomolecules","NWI-MOL100",3]
[null,"Medical microbiology/Parasitology",null,null,null,null,null,null,null,null,null,null,null,"Structure, Function and Bioinformatics","NWI-MOL066",6]
[null,"Medical Microbiology/Virology",null,null,null,null,null,null,null,null,null,null,null,"Synthesis of Biomolecules  ","NWI\u0081-MOL047",3]
[null,"Microbiology",null,null,null,null,null,null,null,null,null,null,null,"Synthesis of Biomolecules Project","NWI-MOL049",6]
[null,"Mitochondrial disorders",null,null,null,null,null,null,null,null,null,null,null,"Toxicology","NWI-MOL054",6]
[null,"Molecular Animal Physiology",null,null,null,null,null,null,null,null,null,null,null,"Vergelijkende genoomanalyse","NWI-MOL073",3]
[null,"Molecular Biology"]
[null,"Molecular Developmental Biology"]
[null,"Molecular Materials"]
[null,"Molecular Nanotechnology",null,null,null,null,null,null,null,null,null,null,null,"Choose from…","",""]
[null,"Molecular Neurogenetics",null,null,null,null,null,null,null,null,null,null,null,"","",""]
[null,"Molecular Pharmacology and Toxicology",null,null,null,null,null,null,null,null,null,null,null,"Adaptatiefysiologie    ","NWI‐BB020B",6]
[null,"Molecular  Plant Physiology",null,null,null,null,null,null,null,null,null,null,null,"Applied Magnetic Resonance","NWI-MOL110",3]
[null,"Nephrology Research Laboratory",null,null,null,null,null,null,null,null,null,null,null,"Biotechnology of Plants  ","NWI‐BB032B",6]
[null,"Neurology",null,null,null,null,null,null,null,null,null,null,null,"Brain and Behaviour","NWI‐BB085B",6]
[null,"Neuro-oncology",null,null,null,null,null,null,null,null,null,null,null,"Chemometrics    ","NWI‐MOL065",6]
[null,"Neurophysiology",null,null,null,null,null,null,null,null,null,null,null,"Cognitive Neuroimaging","NWI\u0081-BB081B",6]
[null,"Organismal Animal Physiology",null,null,null,null,null,null,null,null,null,null,null,"Endocrinology","NWI‐BB048B",6]
[null,"Orthodontics and Craniofacial Biology",null,null,null,null,null,null,null,null,null,null,null,"Green Chemistry","NWI-MOL091",6]
[null,"Pathology",null,null,null,null,null,null,null,null,null,null,null,"History of Biology  ","NWI‐BB028B",3]
[null,"Pediatric infectious diseases",null,null,null,null,null,null,null,null,null,null,null,"Human Embryology & Developmental Biology","NWI‐BB047C",6]
[null,"Pediatric Oncology",null,null,null,null,null,null,null,null,null,null,null,"Humane en Ecologische Risicobeoordeling ","NWI‐MB024B",6]
[null,"Physical-Organic Chemistry",null,null,null,null,null,null,null,null,null,null,null,"Inorganic chemistry lab  ","NWI‐MOL044",3]
[null,"Physiology",null,null,null,null,null,null,null,null,null,null,null,"Linear Algebra","NWI-MOL016",3]
[null,"Rheumatology",null,null,null,null,null,null,null,null,null,null,null,"Magnetic Resonance in Chemistry","NWI-MOL108",3]
[null,"Spectroscopy and Catalysis",null,null,null,null,null,null,null,null,null,null,null,"Medical Pathology","NWI‐BB025B",6]
[null,"Synthetic Organic Chemistry",null,null,null,null,null,null,null,null,null,null,null,"Metalorganic Chemistry  ","NWI‐MOL095",3]
[null,"Tumorimmunology",null,null,null,null,null,null,null,null,null,null,null,"Neurobiophysics","NWI‐BB021B",6]
[null,null,null,null,null,null,null,null,null,null,null,null,null,"Neurodevelopment    ","NWI‐BB039B",6]
[null,null,null,null,null,null,null,null,null,null,null,null,null,"Neurophysiology of Cognition and Behaviour","NWI‐BB080B",6]
[null,null,null,null,null,null,null,null,null,null,null,null,null,"Organic Chemistry Lab","NWI-MOL048A",6]
[null,null,null,null,null,null,null,null,null,null,null,null,null,"Pathofysiology of the Kidney","NWI‐BB065B",6]
[null,null,null,null,null,null,null,null,null,null,null,null,null,"Physical Organic Chemistry  ","NWI‐MOL094",3]
[null,null,null,null,null,null,null,null,null,null,null,null,null,"Physiology of Microorganisms","NWI‐BB024B",6]
[null,null,null,null,null,null,null,null,null,null,null,null,null,"Plant Genome Analysis","NWI‐BB043B",6]
[null,null,null,null,null,null,null,null,null,null,null,null,null,"Stereoselective synthesis   ","NWI‐MOL093",3]
[null,null,null,null,null,null,null,null,null,null,null,null,null,"Synthesis Lab (Organic)","NWI‐MOL087A",3]
[null,null,null,null,null,null,null,null,null,null,null,null,null,"Translational neurosciences   ","MED‐MIN16",12]